bitfinex-derivatives/quotes_BNBF0:USTF0_20250220
["timestamp","ask_amount","ask_price","bid_price","bid_amount"]
[1740030914976,1.09989886,649.7,648.45,0.30842778]
[1740030915175,1.09989886,649.69,648.45,0.30842778]
[1740030915381,1.09989886,649.68,648.45,0.30842778]
[1740030915581,1.09989886,649.67,648.45,0.30842778]
[1740030915883,1.09989886,649.66,648.45,0.30842778]
[1740030916079,1.09989886,649.65,648.45,0.30842778]
[1740030916285,1.09989886,649.64,648.45,0.30842778]
[1740030916582,1.09989886,649.63,648.45,0.30842778]
[1740030916778,1.09989886,649.62,648.45,0.30842778]
[1740030916983,1.09989886,649.61,648.45,0.30842778]
[1740030917184,1.09989886,649.6,648.45,0.30842778]
[1740030917484,1.09989886,649.59,648.45,0.30842778]
[1740030917686,1.09989886,649.58,648.45,0.30842778]
[1740030917883,1.09989886,649.57,648.45,0.30842778]
[1740030918085,1.09989886,649.56,648.45,0.30842778]
[1740030918385,1.09989886,649.55,648.45,0.30842778]
[1740030918585,1.09989886,649.54,648.45,0.30842778]
[1740030918884,1.09989886,649.53,648.45,0.30842778]
[1740030919085,1.09989886,649.52,648.45,0.30842778]
[1740030919285,1.09989886,649.51,648.45,0.30842778]
[1740030919480,1.09989886,649.5,648.45,0.30842778]
[1740030919682,0.30780595,649.76,648.45,0.30842778]
[1740030919683,1.09989886,649.49,648.45,0.30842778]
[1740030919882,1.09989886,649.48,648.45,0.30842778]
[1740030920078,1.09989886,649.47,648.45,0.30842778]
[1740030920377,1.09989886,649.46,648.45,0.30842778]
[1740030920582,1.09989886,649.45,648.45,0.30842778]
[1740030920781,1.09989886,649.44,648.45,0.30842778]
[1740030920978,1.09989886,649.43,648.45,0.30842778]
[1740030921183,1.10004485,649.42,648.45,0.30842778]
[1740030921380,1.10004485,649.41,648.45,0.30842778]
[1740030921578,1.10004485,649.4,648.45,0.30842778]
[1740030921782,1.10004485,649.39,648.45,0.30842778]
[1740030921980,1.10004485,649.38,648.45,0.30842778]
[1740030922186,1.10004485,649.37,648.45,0.30842778]
[1740030922382,1.10004485,649.36,648.45,0.30842778]
[1740030922581,1.10004485,649.35,648.45,0.30842778]
[1740030922786,1.10004485,649.34,648.45,0.30842778]
[1740030922982,1.10004485,649.33,648.45,0.30842778]
[1740030923185,1.10004485,649.32,648.45,0.30842778]
[1740030923385,1.10004485,649.31,648.45,0.30842778]
[1740030923583,1.10004485,649.3,648.45,0.30842778]
[1740030923779,1.10004485,649.29,648.45,0.30842778]
[1740030923984,1.10004485,649.28,648.45,0.30842778]
[1740030924185,1.10004485,649.27,648.45,0.30842778]
[1740030924381,1.10004485,649.26,648.45,0.30842778]
[1740030924686,1.10004485,649.25,648.45,0.30842778]
[1740030924881,1.10004485,649.24,648.45,0.30842778]
[1740030925084,1.10004485,649.23,648.45,0.30842778]
[1740030925387,1.09993587,649.22,648.45,0.30842778]
[1740030925589,1.09993587,649.21,648.45,0.30842778]
[1740030925788,1.09993587,649.2,648.45,0.30842778]
[1740030925983,1.09993587,649.19,648.45,0.30842778]
[1740030926290,1.09993587,649.18,648.45,0.30842778]
[1740030926587,1.09993587,649.17,648.45,0.30842778]
[1740030926788,1.09993587,649.16,648.45,0.30842778]
[1740030927083,0.30780595,649.76,648.45,0.30842778]
[1740030927084,1.09993587,649.15,648.45,0.30842778]
[1740030927289,1.09993587,649.14,648.45,0.30842778]
[1740030927490,1.09993587,649.13,648.45,0.30842778]
[1740030927684,1.09993587,649.12,648.45,0.30842778]
[1740030927887,0.30780595,649.76,648.45,0.30842778]
[1740030928091,1.099796,649.75,648.45,0.30842778]
[1740030928289,1.099796,649.74,648.45,0.30842778]
[1740030928489,1.099796,649.73,648.45,0.30842778]
[1740030928786,1.099796,649.72,648.45,0.30842778]
[1740030928989,1.099796,649.71,648.45,0.30842778]
[1740030929189,1.099796,649.7,648.45,0.30842778]
[1740030929390,1.099796,649.69,648.45,0.30842778]
[1740030929590,1.099796,649.68,648.45,0.30842778]
[1740030929787,1.099796,649.67,648.45,0.30842778]
[1740030929990,1.099796,649.66,648.45,0.30842778]
[1740030930192,1.099796,649.65,648.45,0.30842778]
[1740030930493,0.30780595,649.76,648.45,0.30842778]
[1740030931588,1.09962667,649.75,648.45,0.30842778]
[1740030931791,1.09962667,649.74,648.45,0.30842778]
[1740030931989,1.09962667,649.73,648.45,0.30842778]
[1740030932295,1.09962667,649.72,648.45,0.30842778]
[1740030932495,1.09962667,649.71,648.45,0.30842778]
[1740030932689,0.30780595,649.76,648.45,0.30842778]
[1740030932690,1.09962667,649.7,648.45,0.30842778]
[1740030932893,1.09962667,649.69,648.45,0.30842778]
[1740030933090,1.09962667,649.68,648.45,0.30842778]
[1740030933290,1.09962667,649.67,648.45,0.30842778]
[1740030933591,1.09962667,649.66,648.45,0.30842778]
[1740030933796,1.09962667,649.65,648.45,0.30842778]
[1740030933994,1.09962667,649.64,648.45,0.30842778]
[1740030934189,1.09962667,649.63,648.45,0.30842778]
[1740030934399,1.09962667,649.62,648.45,0.30842778]
[1740030934594,1.09962667,649.61,648.45,0.30842778]
[1740030934793,1.09962667,649.6,648.45,0.30842778]
[1740030934994,1.09962667,649.59,648.45,0.30842778]
[1740030935197,0.30780595,649.76,648.45,0.30842778]
[1740030935198,1.09962667,649.58,648.45,0.30842778]
[1740030935496,1.09962667,649.57,648.45,0.30842778]
[1740030935697,1.09962667,649.56,648.45,0.30842778]
[1740030935897,1.09962667,649.55,648.45,0.30842778]
[1740030936098,1.09962667,649.54,648.45,0.30842778]
[1740030936293,1.09962667,649.53,648.45,0.30842778]
[1740030936493,1.09962667,649.52,648.45,0.30842778]
[1740030936693,1.09962667,649.51,648.45,0.30842778]
[1740030936999,1.09962667,649.5,648.45,0.30842778]
[1740030937199,1.09962667,649.49,648.45,0.30842778]
[1740030937398,1.09962667,649.48,648.45,0.30842778]
[1740030937599,1.09962667,649.47,648.45,0.30842778]
[1740030937795,1.09962667,649.46,648.45,0.30842778]
[1740030937999,1.09962667,649.45,648.45,0.30842778]
[1740030938200,1.09962667,649.44,648.45,0.30842778]
[1740030938397,1.09962667,649.43,648.45,0.30842778]
[1740030938596,1.09962667,649.42,648.45,0.30842778]
[1740030938801,1.09962667,649.41,648.45,0.30842778]
[1740030939003,0.30780595,649.76,648.45,0.30842778]
[1740030939004,1.09962667,649.4,648.45,0.30842778]
[1740030939304,0.30780595,649.76,648.45,0.30842778]
[1740030939305,1.09962667,649.39,648.45,0.30842778]
[1740030939501,1.09962667,649.38,648.45,0.30842778]
[1740030939803,1.09962667,649.37,648.45,0.30842778]
[1740030940098,0.30780595,649.76,648.45,0.30842778]
[1740030940099,1.09962667,649.36,648.45,0.30842778]
[1740030940303,1.09962667,649.35,648.45,0.30842778]
[1740030940505,1.09962667,649.34,648.45,0.30842778]
[1740030940697,1.09962667,649.33,648.45,0.30842778]
[1740030940895,1.09962667,649.32,648.45,0.30842778]
[1740030941097,1.09962667,649.31,648.45,0.30842778]
[1740030941297,1.09962667,649.3,648.45,0.30842778]
[1740030941496,1.09962667,649.29,648.45,0.30842778]
[1740030941701,1.09962667,649.28,648.45,0.30842778]
[1740030942002,1.09962667,649.27,648.45,0.30842778]
[1740030942201,1.09962667,649.26,648.45,0.30842778]
[1740030942401,1.09962667,649.25,648.45,0.30842778]
[1740030942598,1.09962667,649.24,648.45,0.30842778]
[1740030942798,1.09962667,649.23,648.45,0.30842778]
[1740030943003,1.09962667,649.22,648.45,0.30842778]
[1740030943304,1.09962667,649.21,648.45,0.30842778]
[1740030943504,1.09962667,649.2,648.45,0.30842778]
[1740030943704,1.09962667,649.19,648.45,0.30842778]
[1740030943902,0.30780595,649.76,648.45,0.30842778]
[1740030943903,1.09866199,649.18,648.45,0.30842778]
[1740030944099,1.09866199,649.17,648.45,0.30842778]
[1740030944402,1.09866199,649.16,648.45,0.30842778]
[1740030944601,1.09866199,649.15,648.45,0.30842778]
[1740030944802,1.09866199,649.14,648.45,0.30842778]
[1740030945002,0.30780595,649.76,648.45,0.30842778]
[1740030945203,1.38173161,649.75,648.45,0.30842778]
[1740030945404,1.38173161,649.74,648.45,0.30842778]
[1740030945606,1.38173161,649.73,648.45,0.30842778]
[1740030945805,1.09871104,649.72,648.45,0.30842778]
[1740030946009,1.09871104,649.71,648.45,0.30842778]
[1740030946302,1.09871104,649.7,648.45,0.30842778]
[1740030946505,1.09871104,649.69,648.45,0.30842778]
[1740030946709,1.09871104,649.68,648.45,0.30842778]
[1740030946902,1.09871104,649.67,648.45,0.30842778]
[1740030947108,1.09871104,649.66,648.45,0.30842778]
[1740030947408,1.09871104,649.65,648.45,0.30842778]
[1740030947606,1.09871104,649.64,648.45,0.30842778]
[1740030947803,1.09871104,649.63,648.45,0.30842778]
[1740030948103,1.09871104,649.62,648.45,0.30842778]
[1740030948306,1.09871104,649.61,648.45,0.30842778]
[1740030948507,1.09871104,649.6,648.45,0.30842778]
[1740030948709,1.09871104,649.59,648.45,0.30842778]
[1740030948908,0.30780595,649.76,648.45,0.30842778]
[1740030948909,1.09871104,649.58,648.45,0.30842778]
[1740030949109,1.09871104,649.57,648.45,0.30842778]
[1740030949311,1.09871104,649.56,648.45,0.30842778]
[1740030949506,1.09871104,649.55,648.45,0.30842778]
[1740030949706,1.09871104,649.54,648.45,0.30842778]
[1740030949910,1.09871104,649.53,648.45,0.30842778]
[1740030950210,1.09871104,649.52,648.45,0.30842778]
[1740030950412,1.09871104,649.51,648.45,0.30842778]
[1740030950612,1.09871104,649.5,648.45,0.30842778]
[1740030950912,1.09871104,649.49,648.45,0.30842778]
[1740030951212,1.09871104,649.48,648.45,0.30842778]
[1740030951409,1.09871104,649.47,648.45,0.30842778]
[1740030951614,1.09871104,649.46,648.45,0.30842778]
[1740030951916,1.09871104,649.45,648.45,0.30842778]
[1740030952116,1.09871104,649.44,648.45,0.30842778]
[1740030952317,1.09871104,649.43,648.45,0.30842778]
[1740030952611,1.09871104,649.42,648.45,0.30842778]
[1740030952814,1.09871104,649.41,648.45,0.30842778]
[1740030953009,1.09871104,649.4,648.45,0.30842778]
[1740030953211,1.09871104,649.39,648.45,0.30842778]
[1740030953416,1.09871104,649.38,648.45,0.30842778]
[1740030953615,1.09871104,649.37,648.45,0.30842778]
[1740030953816,1.09871104,649.36,648.45,0.30842778]
[1740030954015,1.09871104,649.35,648.45,0.30842778]
[1740030954211,1.09871104,649.34,648.45,0.30842778]
[1740030954419,1.09871104,649.33,648.45,0.30842778]
[1740030954716,1.09871104,649.32,648.45,0.30842778]
[1740030954917,1.09871104,649.31,648.45,0.30842778]
[1740030955116,1.09871104,649.3,648.45,0.30842778]
[1740030955317,1.09871104,649.29,648.45,0.30842778]
[1740030955618,1.09871104,649.28,648.45,0.30842778]
[1740030955811,1.09871104,649.27,648.45,0.30842778]
[1740030956013,1.09871104,649.26,648.45,0.30842778]
[1740030956215,1.09911935,649.25,648.45,0.30842778]
[1740030956521,1.09911935,649.24,648.45,0.30842778]
[1740030956713,1.09911935,649.23,648.45,0.30842778]
[1740030956913,1.09911935,649.22,648.45,0.30842778]
[1740030957122,1.09911935,649.21,648.45,0.30842778]
[1740030957317,1.09911935,649.2,648.45,0.30842778]
[1740030957523,1.09911935,649.19,648.45,0.30842778]
[1740030957724,1.09911935,649.18,648.45,0.30842778]
[1740030957924,1.09911935,649.17,648.45,0.30842778]
[1740030958126,1.09911935,649.16,648.45,0.30842778]
[1740030958426,0.30780595,649.76,648.45,0.30842778]
[1740030958619,1.38216617,649.75,648.45,0.30842778]
[1740030958822,1.38216617,649.74,648.45,0.30842778]
[1740030959023,1.38216617,649.73,648.45,0.30842778]
[1740030959222,1.09917758,649.72,648.45,0.30842778]
[1740030959525,1.09917758,649.71,648.45,0.30842778]
[1740030959720,1.09917758,649.7,648.45,0.30842778]
[1740030959923,1.09917758,649.69,648.45,0.30842778]
[1740030960129,1.09917758,649.68,648.45,0.30842778]
[1740030960328,1.09917111,649.67,648.45,0.30842778]
[1740030960528,1.09917111,649.66,648.45,0.30842778]
[1740030960728,0.30780595,649.76,648.45,0.30842778]
[1740030960924,0.28299366,649.75,648.45,0.30842778]
[1740030961828,1.09970815,649.74,648.45,0.30842778]
[1740030962030,1.09970815,649.73,648.45,0.30842778]
[1740030962222,1.09970815,649.72,648.45,0.30842778]
[1740030962430,1.09970815,649.71,648.45,0.30842778]
[1740030962629,1.09970815,649.7,648.45,0.30842778]
[1740030962931,1.09970815,649.69,648.45,0.30842778]
[1740030963124,1.09970815,649.68,648.45,0.30842778]
[1740030963430,1.09970815,649.67,648.45,0.30842778]
[1740030963630,1.09970815,649.66,648.45,0.30842778]
[1740030963930,1.09970815,649.65,648.45,0.30842778]
[1740030964129,1.09970815,649.64,648.45,0.30842778]
[1740030964325,1.09970815,649.63,648.45,0.30842778]
[1740030964524,1.09970815,649.62,648.45,0.30842778]
[1740030964727,1.09970815,649.61,648.45,0.30842778]
[1740030964925,1.09970815,649.6,648.45,0.30842778]
[1740030965131,1.09970815,649.59,648.45,0.30842778]
[1740030965330,1.09970815,649.58,648.45,0.30842778]
[1740030965526,1.09970815,649.57,648.45,0.30842778]
[1740030965732,1.09970815,649.56,648.45,0.30842778]
[1740030965931,1.09970815,649.55,648.45,0.30842778]
[1740030966130,1.09970815,649.54,648.45,0.30842778]
[1740030966330,1.09970815,649.53,648.45,0.30842778]
[1740030966531,1.09970815,649.52,648.45,0.30842778]
[1740030966731,1.09970815,649.51,648.45,0.30842778]
[1740030966932,1.09970815,649.5,648.45,0.30842778]
[1740030967130,1.09970815,649.49,648.45,0.30842778]
[1740030967334,1.09970815,649.48,648.45,0.30842778]
[1740030967527,1.09970815,649.47,648.45,0.30842778]
[1740030967731,1.09970815,649.46,648.45,0.30842778]
[1740030967932,1.09970815,649.45,648.45,0.30842778]
[1740030968133,1.09970815,649.44,648.45,0.30842778]
[1740030968335,1.09970815,649.43,648.45,0.30842778]
[1740030968534,1.09970815,649.42,648.45,0.30842778]
[1740030968836,1.09970815,649.41,648.45,0.30842778]
[1740030969034,1.09970815,649.4,648.45,0.30842778]
[1740030969234,1.09970815,649.39,648.45,0.30842778]
[1740030969431,1.09970815,649.38,648.45,0.30842778]
[1740030969634,1.09970815,649.37,648.45,0.30842778]
[1740030969931,1.09970815,649.36,648.45,0.30842778]
[1740030970135,0.30780595,649.76,648.45,0.30842778]
[1740030970338,1.09932183,649.75,648.45,0.30842778]
[1740030970540,1.09932183,649.74,648.45,0.30842778]
[1740030970837,1.09932183,649.73,648.45,0.30842778]
[1740030971036,1.09932183,649.72,648.45,0.30842778]
[1740030971233,1.09932183,649.71,648.45,0.30842778]
[1740030971437,1.09932183,649.7,648.45,0.30842778]
[1740030971635,1.09932183,649.69,648.45,0.30842778]
[1740030971838,1.09932183,649.68,648.45,0.30842778]
[1740030972033,1.09932183,649.67,648.45,0.30842778]
[1740030972237,1.09932183,649.66,648.45,0.30842778]
[1740030972439,1.09932183,649.65,648.45,0.30842778]
[1740030972635,1.09932183,649.64,648.45,0.30842778]
[1740030972836,1.09932183,649.63,648.45,0.30842778]
[1740030973038,1.09932183,649.62,648.45,0.30842778]
[1740030973237,1.09932183,649.61,648.45,0.30842778]
[1740030973539,1.09932183,649.6,648.45,0.30842778]
[1740030973741,1.09932183,649.59,648.45,0.30842778]
[1740030974036,1.09932183,649.58,648.45,0.30842778]
[1740030974241,1.09932183,649.57,648.45,0.30842778]
[1740030974541,1.09932183,649.56,648.45,0.30842778]
[1740030974740,1.09932183,649.55,648.45,0.30842778]
[1740030974940,1.09932183,649.54,648.45,0.30842778]
[1740030975240,1.09932183,649.53,648.45,0.30842778]
[1740030975433,1.09932183,649.52,648.45,0.30842778]
[1740030975637,1.09932183,649.51,648.45,0.30842778]
[1740030975838,1.09932183,649.5,648.45,0.30842778]
[1740030976139,1.09932183,649.49,648.45,0.30842778]
[1740030976341,1.09932183,649.48,648.45,0.30842778]
[1740030976637,1.09932183,649.47,648.45,0.30842778]
[1740030976840,1.09932183,649.46,648.45,0.30842778]
[1740030977039,0.30780595,649.76,648.45,0.30842778]
[1740030977040,1.09932183,649.45,648.45,0.30842778]
[1740030977241,1.09932183,649.44,648.45,0.30842778]
[1740030977439,1.09932183,649.43,648.45,0.30842778]
[1740030977737,1.09932183,649.42,648.45,0.30842778]
[1740030977935,1.09932183,649.41,648.45,0.30842778]
[1740030978140,1.09932183,649.4,648.45,0.30842778]
[1740030978336,1.09932183,649.39,648.45,0.30842778]
[1740030978539,1.09932183,649.38,648.45,0.30842778]
[1740030978739,1.09932183,649.37,648.45,0.30842778]
[1740030978935,1.09932183,649.36,648.45,0.30842778]
[1740030979136,1.09932183,649.35,648.45,0.30842778]
[1740030979336,1.09932183,649.34,648.45,0.30842778]
[1740030979536,0.30780595,649.76,648.45,0.30842778]
[1740030979537,1.09932183,649.33,648.45,0.30842778]
[1740030979742,0.30780595,649.76,648.45,0.30842778]
[1740030979943,1.09845182,649.75,648.45,0.30842778]
[1740030980138,1.09845182,649.74,648.45,0.30842778]
[1740030980341,1.09845182,649.73,648.45,0.30842778]
[1740030980541,1.09845182,649.72,648.45,0.30842778]
[1740030980742,1.09845182,649.71,648.45,0.30842778]
[1740030980940,1.09845182,649.7,648.45,0.30842778]
[1740030981141,1.09845182,649.69,648.45,0.30842778]
[1740030981443,1.09845182,649.68,648.45,0.30842778]
[1740030981744,1.09845182,649.67,648.45,0.30842778]
[1740030981945,1.09845182,649.66,648.45,0.30842778]
[1740030982141,1.09845182,649.65,648.45,0.30842778]
[1740030982342,1.09845182,649.64,648.45,0.30842778]
[1740030982546,1.09845182,649.63,648.45,0.30842778]
[1740030982844,1.09845182,649.62,648.45,0.30842778]
[1740030983037,1.09845182,649.61,648.45,0.30842778]
[1740030983241,1.09845182,649.6,648.46,1.14537976]
[1740030983442,1.09845182,649.59,648.47,0.30841827]
[1740030983645,1.09845182,649.58,648.47,0.30841827]
[1740030983840,1.09845182,649.57,648.47,0.30841827]
[1740030984047,1.09845182,649.56,648.47,0.30841827]
[1740030984346,1.09845182,649.55,648.47,0.30841827]
[1740030984546,1.09845182,649.54,648.47,0.30841827]
[1740030984747,1.09845182,649.53,648.47,0.30841827]
[1740030985046,1.09845182,649.52,648.47,0.30841827]
[1740030985244,1.09845182,649.51,648.47,0.30841827]
[1740030985444,1.09845182,649.5,648.47,0.30841827]
[1740030985645,1.09845182,649.49,648.47,0.30841827]
[1740030985841,1.09845182,649.48,648.47,0.30841827]
[1740030986043,1.09845182,649.47,648.47,0.30841827]
[1740030986346,1.09845182,649.46,648.47,0.30841827]
[1740030986645,1.09845182,649.45,648.47,0.30841827]
[1740030986846,1.09845182,649.44,648.47,0.30841827]
[1740030987046,1.09845182,649.43,648.47,0.30841827]
[1740030987243,1.09845182,649.42,648.47,0.30841827]
[1740030987444,1.09845182,649.41,648.48,1.14537976]
[1740030987647,1.09845182,649.4,648.48,1.14537976]
[1740030987846,1.09845182,649.39,648.48,1.14537976]
[1740030988046,1.09845182,649.38,648.48,1.14537976]
[1740030988247,1.09821406,649.37,648.48,1.14537976]
[1740030988548,1.09820207,649.36,648.48,1.14537976]
[1740030988747,0.30780595,649.76,648.48,1.14537976]
[1740030988949,1.09818663,649.75,648.48,1.14537976]
[1740030989149,1.09818663,649.74,648.48,1.14537976]
[1740030989351,1.09818663,649.73,648.48,1.14537976]
[1740030989545,1.09818663,649.72,648.48,1.14537976]
[1740030989745,1.09818663,649.71,648.48,1.14537976]
[1740030989951,1.09818663,649.7,648.48,1.14537976]
[1740030990152,1.09818663,649.69,648.49,0.30840876]
[1740030990351,1.09818663,649.68,648.49,0.30840876]
[1740030990552,1.09818663,649.67,648.49,0.30840876]
[1740030990751,1.09818663,649.66,648.49,0.30840876]
[1740030990952,0.30780595,649.76,648.49,0.30840876]
[1740030990953,1.09818663,649.65,648.49,0.30840876]
[1740030991151,1.09818663,649.64,648.49,0.30840876]
[1740030991347,1.09818663,649.63,648.49,0.30840876]
[1740030991551,1.09818663,649.62,648.49,0.30840876]
[1740030991752,1.09818663,649.61,648.49,0.30840876]
[1740030991953,1.09818663,649.6,648.49,0.30840876]
[1740030992255,1.09818663,649.59,648.49,0.30840876]
[1740030992450,1.09818663,649.58,648.49,0.30840876]
[1740030992658,1.09818663,649.57,648.49,1.45378852]
[1740030992848,0.30780595,649.76,648.49,1.45378852]
[1740030992849,1.09818663,649.56,648.49,1.45378852]
[1740030993054,1.09818663,649.55,648.49,1.45378852]
[1740030993251,1.09818663,649.54,648.49,1.45378852]
[1740030993451,1.09818663,649.53,648.49,1.45378852]
[1740030993656,1.09818663,649.52,648.49,1.45378852]
[1740030993850,1.09818663,649.51,648.49,1.45378852]
[1740030994050,1.09818663,649.5,648.49,1.45378852]
[1740030994257,1.09818663,649.49,648.49,1.45378852]
[1740030994460,0.30780595,649.76,648.49,1.45378852]
[1740030994651,1.09850381,649.75,648.49,0.30840876]
[1740030994850,1.09850381,649.74,648.49,0.30840876]
[1740030995054,1.09850381,649.73,648.49,0.30840876]
[1740030995350,1.09850381,649.72,648.49,0.30840876]
[1740030995553,1.09850381,649.71,648.49,0.30840876]
[1740030995756,1.09850381,649.7,648.49,0.30840876]
[1740030995957,1.09850381,649.69,648.49,0.30840876]
[1740030996153,0.30780595,649.76,648.49,0.30840876]
[1740030996357,1.09820719,649.75,648.49,0.30840876]
[1740030996554,1.09820719,649.74,648.49,0.30840876]
[1740030996754,1.09820719,649.73,648.49,0.30840876]
[1740030996953,1.09820719,649.72,648.56,1.14537976]
[1740030997158,1.09820719,649.71,648.56,1.14537976]
[1740030997359,1.09820719,649.7,648.56,1.14537976]
[1740030997555,1.09820719,649.69,648.56,1.14537976]
[1740030997761,1.09820719,649.68,648.56,1.14537976]
[1740030997961,0.30780595,649.76,648.56,1.14537976]
[1740030997962,1.09820719,649.67,648.56,1.14537976]
[1740030998158,1.09820719,649.66,648.56,1.14537976]
[1740030998457,1.09820719,649.65,648.56,1.14537976]
[1740030998762,1.09820719,649.64,648.54,1.14537976]
[1740030998961,1.09820719,649.63,648.54,1.14537976]
[1740030999163,1.09820719,649.62,648.54,1.14537976]
[1740030999363,1.09820719,649.61,648.54,1.14537976]
[1740030999557,1.09820719,649.6,648.54,1.14537976]
[1740030999759,1.09820719,649.59,648.54,1.14537976]
[1740030999958,1.09820719,649.58,648.54,1.14537976]
[1740031000165,1.09820719,649.57,648.54,1.14537976]
[1740031000366,1.09772379,649.56,648.54,1.14537976]
[1740031000566,1.09772379,649.55,648.54,1.14537976]
[1740031000760,1.09772379,649.54,648.55,1.14537976]
[1740031000963,1.09772379,649.53,648.55,1.14537976]
[1740031001168,1.09772379,649.52,648.55,1.14537976]
[1740031001371,1.09772379,649.51,648.55,1.14537976]
[1740031001565,1.09772379,649.5,648.55,1.14537976]
[1740031001767,1.09772379,649.49,648.55,1.14537976]
[1740031001967,1.09772379,649.48,648.55,1.14537976]
[1740031002167,1.09772379,649.47,648.55,1.14537976]
[1740031002369,1.09772379,649.46,648.55,1.14537976]
[1740031002569,1.09772379,649.45,648.55,1.14537976]
[1740031002766,1.09772379,649.44,648.55,1.14537976]
[1740031002966,1.09772379,649.43,648.55,1.14537976]
[1740031003168,1.09772379,649.42,648.55,1.14537976]
[1740031003369,1.09772379,649.41,648.55,1.14537976]
[1740031003570,1.09772379,649.4,648.55,1.14537976]
[1740031003770,1.09808738,649.39,648.49,1.60843039]
[1740031003970,1.14048513,650.34,648.49,1.60843039]
[1740031004164,1.38100751,650.33,648.49,1.60843039]
[1740031004367,1.38100751,650.32,648.49,1.60843039]
[1740031004669,1.38100751,650.31,648.49,1.60843039]
[1740031004869,1.38100751,650.3,648.49,1.60843039]
[1740031005069,1.38100751,650.29,648.49,1.60843039]
[1740031005369,0.28292668,650.28,648.49,1.60843039]
[1740031005565,0.2829229,650.27,648.49,1.60843039]
[1740031005767,1.09838178,650.27,648.49,1.60843039]
[1740031005966,0.2829229,650.26,648.49,1.60843039]
[1740031006164,0.2829229,650.25,648.49,1.60843039]
[1740031006369,0.2829229,650.24,648.49,1.60843039]
[1740031006566,0.2829229,650.4,648.49,1.60843039]
[1740031006766,1.0984822,650.39,648.49,1.60843039]
[1740031006967,0.2829229,650.38,648.49,1.60843039]
[1740031007167,0.2829229,650.4,648.49,1.60843039]
[1740031007368,0.2829229,650.39,648.49,1.60843039]
[1740031007571,0.2829229,650.4,648.49,1.60843039]
[1740031007971,1.09854965,650.39,648.49,1.60843039]
[1740031008273,1.38147164,650.38,648.49,1.60843039]
[1740031008467,1.38147164,650.37,648.49,1.60843039]
[1740031008668,1.38147164,650.36,648.49,1.60843039]
[1740031008869,1.38147164,650.35,648.49,1.60843039]
[1740031009069,1.38147164,650.34,648.49,1.60843039]
[1740031009272,1.38147164,650.33,648.49,1.60843039]
[1740031009571,1.38147164,650.32,648.49,1.60843039]
[1740031009770,1.38147164,650.31,648.49,1.60843039]
[1740031009970,1.38147164,650.3,648.49,1.60843039]
[1740031010273,1.38147164,650.29,648.49,1.60843039]
[1740031010466,1.38147164,650.28,648.49,1.60843039]
[1740031010671,1.09854874,650.27,648.49,1.60843039]
[1740031010971,1.38151703,650.26,648.49,1.60843039]
[1740031011170,1.38151703,650.25,648.49,1.60843039]
[1740031011372,1.38151703,650.24,648.49,1.60843039]
[1740031011572,1.38151703,650.23,648.49,1.60843039]
[1740031011773,1.38151703,650.22,648.49,1.60843039]
[1740031012073,1.38151703,650.21,648.49,1.60843039]
[1740031012274,1.38151703,650.2,648.49,1.60843039]
[1740031012474,1.38152429,650.19,648.49,1.60843039]
[1740031012675,1.38152429,650.18,648.49,1.60843039]
[1740031012870,1.38152429,650.17,648.49,1.60843039]
[1740031013070,1.38152429,650.16,648.49,1.60843039]
[1740031013277,1.38152429,650.15,648.49,1.60843039]
[1740031013477,1.38139068,650.14,648.49,1.60843039]
[1740031013669,1.38139068,650.13,648.49,1.60843039]
[1740031013873,1.38139068,650.12,648.49,1.60843039]
[1740031014076,1.09841513,650.11,648.49,1.60843039]
[1740031014274,1.09841513,650.1,648.49,1.60843039]
[1740031014474,1.38139068,650.09,648.49,1.60843039]
[1740031014675,1.14048513,650.52,648.49,1.60843039]
[1740031014676,1.38139068,650.08,648.49,1.60843039]
[1740031014872,1.38139068,650.07,648.49,1.60843039]
[1740031015076,1.38139068,650.06,648.49,1.60843039]
[1740031015277,1.38139068,650.05,648.49,1.60843039]
[1740031015579,1.38143204,650.04,648.49,1.60843039]
[1740031015779,1.38143204,650.03,648.49,1.60843039]
[1740031016077,1.09845649,650.02,648.49,1.60843039]
[1740031016280,1.09845649,650.01,648.49,1.60843039]
[1740031016479,1.09845649,650.0,648.49,1.60843039]
[1740031016680,1.09845649,649.99,648.49,1.60843039]
[1740031016874,1.09845649,649.98,648.49,1.60843039]
[1740031017174,1.09845649,649.97,648.49,1.60843039]
[1740031017374,1.09845649,649.96,648.49,1.60843039]
[1740031017579,1.09845649,649.95,648.49,1.60843039]
[1740031017779,1.09845649,649.94,648.49,1.60843039]
[1740031017979,1.09845649,649.93,648.49,1.60843039]
[1740031018180,1.09845649,649.92,648.49,1.60843039]
[1740031018378,1.09845649,649.91,648.49,1.60843039]
[1740031018575,1.09845649,649.9,648.49,1.60843039]
[1740031018779,1.09845649,649.89,648.49,1.60843039]
[1740031019080,1.09845649,649.88,648.49,1.60843039]
[1740031019276,1.09845649,649.87,648.49,1.60843039]
[1740031019479,1.09845649,649.86,648.49,1.60843039]
[1740031019679,1.09845649,649.85,648.49,1.60843039]
[1740031019881,1.09845649,649.84,648.49,1.60843039]
[1740031020081,1.38143433,649.83,648.49,1.60843039]
[1740031020282,1.38143433,649.82,648.49,1.60843039]
[1740031020478,1.38143433,649.81,648.49,1.60843039]
[1740031020676,1.38143433,649.8,648.49,1.60843039]
[1740031020879,1.38143433,649.79,648.49,1.60843039]